bitfinex/quotes_ETHUSD_20251111
["timestamp","ask_amount","ask_price","bid_price","bid_amount"]
[1762878091609,3.35480892,3491.8,3491.2,4.0447218]
[1762878091834,2.86404364,3491.6,3491.2,0.689]
[1762878092009,0.3892,3491.3,3491.2,0.689]
[1762878092332,0.8791,3491.3,3490.8,0.49138116]
[1762878092527,0.8791,3491.3,3490.9,0.689]
[1762878092714,0.4909,3491.2,3491.0,2.86445643]
[1762878092891,0.4909,3491.2,3490.9,1.18038116]
[1762878093106,0.4909,3491.2,3491.0,2.86444741]
[1762878093520,0.3892,3491.1,3490.9,0.689]
[1762878093845,0.3892,3491.0,3490.9,0.689]
[1762878094347,0.8791,3491.0,3490.9,0.689]
[1762878094505,1.1337408,3492.0,3490.9,0.689]
[1762878094506,0.4899,3491.5,3490.9,0.689]
[1762878094710,0.4899,3491.5,3491.2,3.35571668]
[1762878095028,0.4899,3491.5,3491.3,0.688]
[1762878095204,0.4899,3491.5,3491.4,0.688]
[1762878095403,0.4899,3491.5,3490.7,3.35608917]
[1762878095404,2.86421808,3491.4,3490.7,3.35608917]
[1762878095622,2.86436943,3491.2,3490.8,0.688]
[1762878095820,2.86458169,3491.0,3490.8,0.688]
[1762878096052,0.5813,3490.9,3490.8,0.688]
[1762878096260,3.93579079,3490.9,3490.8,0.688]
[1762878096469,10.23499079,3490.9,3490.8,0.688]
[1762878096789,10.23499079,3490.9,3490.2,2.86508908]
[1762878096940,6.3,3490.9,3490.5,0.688]
[1762878097121,6.3,3490.9,3490.8,0.49138116]
[1762878097322,6.983,3490.9,3490.5,0.688]
[1762878097522,0.4864,3490.6,3490.5,0.688]
[1762878097861,3.3512527,3490.6,3490.5,0.688]
[1762878098062,0.8785,3490.6,3490.5,0.688]
[1762878099754,0.8785,3490.6,3490.1,0.01]
[1762878099755,2.8649976,3490.5,3490.4,0.001]
[1762878100003,3.3558976,3490.5,3490.4,0.001]
[1762878100301,3.7434976,3490.5,3490.4,0.001]
[1762878101381,0.8785,3490.5,3490.4,0.001]
[1762878101564,3.74341906,3490.5,3490.4,0.001]
[1762878101964,10.04341906,3490.5,3490.4,0.001]
[1762878102365,7.1785,3490.5,3490.4,0.001]
[1762878102568,7.44602306,3490.5,3490.4,0.001]
[1762878102783,10.31094212,3490.5,3490.4,0.001]
[1762878106793,0.26752306,3490.5,3490.4,4.5248823]
[1762878107007,0.1921,3491.5,3490.9,0.49138116]
[1762878107172,0.26739522,3491.4,3491.2,3.35572439]
[1762878107502,0.26739522,3491.4,3491.0,0.689]
[1762878107503,0.26739522,3491.3,3491.0,0.689]
[1762878107804,0.26738402,3491.2,3491.0,0.689]
[1762878108006,0.4909,3491.7,3491.2,2.86429235]
[1762878108170,0.26738185,3491.6,3491.4,0.49138116]
[1762878108370,6.3,3491.8,3491.6,2.86401529]
[1762878108676,6.302,3491.9,3491.7,0.688]
[1762878108883,0.26731959,3491.8,3491.7,0.688]
[1762878109803,0.65491959,3491.8,3491.7,0.688]
[1762878110178,1.14481959,3491.8,3491.7,0.688]
[1762878111189,0.26731959,3491.8,3491.7,0.688]
[1762878111715,6.302,3491.9,3491.7,0.688]
[1762878112266,0.3886,3491.8,3491.7,0.688]
[1762878112518,4.00850482,3491.8,3491.7,0.688]
[1762878112808,1.14465237,3491.8,3491.7,0.688]
[1762878113009,0.26715237,3491.8,3491.7,0.688]
[1762878113985,1.14465237,3491.8,3491.7,0.688]
[1762878114183,4.00850482,3491.8,3491.7,0.688]
[1762878114583,0.65675237,3491.8,3491.7,0.688]
[1762878114780,0.3896,3491.8,3491.7,0.688]
[1762878114986,0.65672068,3491.8,3491.7,0.688]
[1762878115214,0.3896,3491.8,3491.7,0.688]
[1762878115387,0.26710056,3491.8,3491.7,0.688]
[1762878115585,6.302,3491.9,3491.7,0.688]
[1762878115987,6.302,3491.9,3491.7,1.17938116]
[1762878116401,6.302,3491.9,3491.7,3.55193269]
[1762878116575,0.002,3491.9,3491.8,4.28293361]
[1762878116774,0.4316,3491.9,3491.7,0.688]
[1762878116983,0.002,3491.9,3491.7,0.688]
[1762878117308,0.002,3491.9,3491.8,4.31023361]
[1762878117509,0.002,3491.9,3491.8,5.0964511]
[1762878119610,0.002,3491.9,3491.8,4.5981511]
[1762878119915,0.002,3491.9,3491.8,1.73429865]
[1762878120215,0.0012,3491.9,3491.8,3.81193361]
[1762878121612,0.0012,3491.9,3491.8,0.94808116]
[1762878121815,0.0012,3491.9,3491.8,3.81193361]
[1762878122030,0.0012,3491.9,3491.8,0.94808116]
[1762878122233,0.0012,3491.9,3491.7,0.688]
[1762878122234,0.4221,3491.9,3491.7,0.688]
[1762878122532,0.0047,3491.8,3491.7,0.688]
[1762878122832,0.0012,3491.9,3491.7,3.55193447]
[1762878123136,0.0012,3491.9,3491.7,0.688]
[1762878123293,0.0012,3491.9,3491.8,3.32055245]
[1762878123493,0.0012,3491.9,3491.8,3.81193361]
[1762878124232,0.0012,3491.9,3491.7,0.688]
[1762878124233,0.4674,3491.9,3491.7,0.688]
[1762878124437,0.1958,3491.8,3491.3,2.86425174]
[1762878124738,0.6636,3491.8,3491.4,3.55217772]
[1762878124935,0.6636,3491.8,3491.4,4.04355888]
[1762878125676,0.6636,3491.8,3491.5,0.49138116]
[1762878125940,0.4678,3491.7,3491.4,0.688]
[1762878126143,0.1968,3491.9,3491.5,3.35540795]
[1762878126301,0.0012,3491.9,3491.6,2.86394632]
[1762878126507,0.0012,3491.9,3491.6,0.49138116]
[1762878127007,0.0012,3491.9,3491.6,2.86401141]
[1762878127429,0.0012,3491.9,3491.6,3.35539257]
[1762878127631,0.0012,3491.9,3491.6,2.86401016]
[1762878127845,0.0012,3491.9,3491.8,3.32055245]
[1762878128043,0.0012,3491.9,3491.8,4.49993361]
[1762878128218,0.0012,3491.9,3491.8,0.688]
[1762878128416,0.0012,3491.9,3491.8,4.04323361]
[1762878128620,0.0012,3491.9,3491.8,4.49993361]
[1762878128835,0.0012,3491.9,3491.8,5.48374707]
[1762878129032,0.0012,3491.9,3491.8,2.61989462]
[1762878129341,0.0012,3491.9,3491.8,5.48374707]
[1762878130048,0.0012,3491.9,3491.8,1.17351346]
[1762878130251,0.0012,3491.9,3491.8,1.1447]
[1762878130544,0.0012,3491.9,3491.8,4.99823361]
[1762878130720,0.0012,3491.9,3491.8,2.13438116]
[1762878130926,0.0012,3491.9,3491.8,1.63608116]
[1762878131131,0.0012,3491.9,3491.8,4.99823361]
[1762878131335,0.0012,3491.9,3491.8,5.78444284]
[1762878132623,0.0012,3491.9,3491.8,6.91818364]
[1762878132947,0.0012,3491.9,3491.8,6.63568764]
[1762878133171,0.0012,3491.9,3491.8,6.41988364]
[1762878133347,0.0012,3491.9,3491.8,6.91818364]
[1762878133814,0.0012,3491.9,3491.8,7.32368764]
[1762878134134,0.0012,3491.9,3491.8,13.78339216]
[1762878134713,0.0012,3491.9,3491.8,6.91818364]
[1762878136514,0.0012,3491.9,3491.8,5.28614284]
[1762878136850,0.0012,3491.9,3491.8,4.49993361]
[1762878137299,0.0012,3491.9,3491.8,4.04323361]
[1762878137580,1.0632,3491.9,3491.8,0.688]
[1762878137882,1.33093371,3491.9,3491.8,0.688]
[1762878138459,1.33093371,3491.9,3491.5,0.001]
[1762878138654,3.06057541,3491.9,3491.8,0.688]
[1762878138858,0.46460416,3491.9,3491.8,0.688]
[1762878139181,1.33100416,3491.9,3491.8,0.688]
[1762878139382,0.73520416,3491.9,3491.8,0.688]
[1762878140040,3.5989746,3491.9,3491.8,0.688]
[1762878140276,4.1947746,3491.9,3491.8,0.688]
[1762878140648,1.33100416,3491.9,3491.8,0.688]
[1762878141185,4.1947746,3491.9,3491.8,0.688]
[1762878141879,3.7945746,3491.9,3491.8,0.688]
[1762878142078,0.73520416,3491.9,3491.8,0.688]
[1762878142279,3.7331746,3491.9,3491.8,0.688]
[1762878142470,4.1942746,3491.9,3491.8,0.688]
[1762878142666,0.86940416,3491.9,3491.8,0.688]
[1762878142968,0.73520416,3491.9,3491.8,0.688]
[1762878143179,0.26900416,3491.9,3491.8,0.688]
[1762878144162,0.26820416,3491.9,3491.8,0.688]
[1762878144568,0.26820416,3491.9,3491.8,4.49993361]
[1762878144770,0.0004,3491.9,3491.8,5.78742236]
[1762878145279,0.0004,3491.9,3491.8,6.92116316]
[1762878147572,0.0004,3491.9,3491.8,13.87580592]
[1762878151890,0.18,3492.9,3492.8,3.26853652]
[1762878152091,1e-08,3492.9,3492.8,12.81009724]
[1762878152265,1e-08,3492.9,3492.8,13.30049724]
[1762878153155,1e-08,3492.9,3492.8,12.12209724]
[1762878153356,1e-08,3492.9,3492.8,14.84805934]
[1762878153762,1e-08,3492.9,3492.8,7.21281658]
[1762878154088,1e-08,3492.9,3492.8,5.66525448]
[1762878154287,1e-08,3492.9,3492.8,4.04241368]
[1762878154493,0.42290001,3492.9,3492.8,4.04241368]
[1762878154793,1e-08,3492.9,3492.8,4.53151368]
[1762878154960,1e-08,3492.9,3492.8,4.04241368]
[1762878155158,0.42290001,3492.9,3492.8,1.17938116]
[1762878155396,1.10650001,3492.9,3492.8,0.688]
[1762878155993,1.10850001,3492.9,3492.8,0.688]
[1762878156495,1.37562752,3492.9,3492.8,0.688]
[1762878157660,0.88762752,3492.9,3492.8,0.688]
[1762878158061,1.37562752,3492.9,3492.8,0.688]
[1762878158261,0.88762752,3492.9,3492.8,0.688]
[1762878158500,0.69202752,3492.9,3492.8,0.688]
[1762878158700,0.42490001,3492.9,3492.8,0.688]
[1762878158897,0.00200001,3492.9,3492.8,4.9357698]
[1762878159203,0.00200001,3492.9,3492.8,4.4466698]
[1762878159572,1.10850001,3492.9,3492.8,0.688]
[1762878159768,1.10850001,3492.9,3492.8,0.687]
[1762878160505,4.23858989,3492.9,3492.8,0.687]
[1762878160805,2.86318004,3492.7,3492.1,0.49138116]
[1762878160988,0.26713933,3492.6,3492.2,0.687]
[1762878161194,0.4887,3492.6,3492.2,0.687]
[1762878161398,0.4229,3492.3,3492.2,0.687]
[1762878161901,0.9109,3492.3,3492.2,0.687]
[1762878162112,0.4229,3492.3,3492.2,0.687]
[1762878162272,0.488,3492.6,3492.2,3.55052442]
[1762878162477,0.19760001,3492.9,3492.2,3.55052442]
[1762878162478,0.00200001,3492.9,3492.8,2.86303252]
[1762878162676,0.00200001,3492.9,3492.8,4.53051368]
[1762878162908,0.00200001,3492.9,3492.8,6.1832848]
[1762878163109,0.00200001,3492.9,3492.8,6.15465448]
[1762878163310,0.00200001,3492.9,3492.8,7.71135345]
[1762878164274,0.00200001,3492.9,3492.8,8.11685745]
[1762878165776,0.00200001,3492.9,3492.8,7.62645745]
[1762878165980,0.00200001,3492.9,3492.8,6.04485345]
[1762878166180,0.62050001,3492.9,3492.8,0.49138116]
[1762878166390,1.10850001,3492.9,3492.8,0.687]
[1762878167293,1.10850001,3492.9,3492.8,3.55003252]
[1762878167492,0.00200001,3492.9,3492.8,0.687]
[1762878167701,0.00200001,3492.9,3492.8,4.04141368]
[1762878168413,0.0012,3492.9,3492.8,1.17838116]
[1762878168581,0.0012,3492.9,3492.8,3.55003252]
[1762878168786,0.0012,3492.9,3492.8,4.04141368]
[1762878169312,0.0012,3492.9,3492.8,0.687]
[1762878169313,1.1077,3492.9,3492.8,0.687]
[1762878169507,1.1077,3492.9,3492.8,3.55003252]
[1762878169705,0.6197,3492.9,3492.8,4.04141368]
[1762878169889,0.0012,3492.9,3492.8,4.04141368]
[1762878170286,0.0012,3492.9,3492.8,4.84524755]
[1762878171730,0.481,3492.9,3492.8,4.35386639]
[1762878172094,0.0012,3492.9,3492.8,4.84524755]
[1762878172299,0.0012,3492.9,3492.8,5.33434755]
[1762878173083,0.0012,3492.9,3492.8,6.95848835]
[1762878174088,0.0012,3492.9,3492.8,6.95948835]
[1762878174741,0.0012,3492.9,3492.8,6.46908835]
[1762878174947,0.0012,3492.9,3492.8,5.97998835]
[1762878175168,0.0012,3492.9,3492.8,6.46908835]
[1762878176511,0.0012,3492.9,3492.8,6.93808835]
[1762878176715,0.0012,3492.9,3492.8,5.29298835]
[1762878177025,0.0012,3492.9,3492.8,6.98241867]
[1762878177246,0.0012,3492.9,3492.8,6.95378835]
[1762878177452,0.0012,3492.9,3492.8,6.46488835]
[1762878178832,0.0012,3492.9,3492.8,4.15924755]
[1762878179123,0.0012,3492.9,3492.8,4.52631368]
[1762878179330,0.0012,3492.9,3492.8,5.01521368]
[1762878179543,0.0012,3492.9,3492.8,6.14895448]
[1762878180053,0.0012,3492.9,3492.8,5.66005448]
[1762878180249,0.0012,3492.9,3492.8,6.14895448]
[1762878180450,0.0012,3492.9,3492.8,7.99138787]
[1762878180766,0.0012,3492.9,3492.8,7.50248787]
[1762878181065,0.0012,3492.9,3492.8,7.01858787]
[1762878181358,0.0012,3492.9,3492.8,5.66005448]
[1762878181664,0.0012,3492.9,3492.8,6.14895448]
[1762878181818,0.0012,3492.9,3492.8,6.55445848]
[1762878182635,0.0012,3492.9,3492.8,6.06555848]
[1762878182838,0.0012,3492.9,3492.8,5.66005448]
[1762878183051,0.0012,3492.9,3492.8,5.17615448]
[1762878183353,0.0012,3492.9,3492.8,5.98008196]
[1762878183549,0.0012,3492.9,3492.8,6.46398196]
[1762878185253,0.0012,3492.9,3492.8,6.95288196]
[1762878185650,0.0012,3492.9,3492.8,7.35838596]
[1762878186555,0.01,3493.9,3493.8,2.86221306]
[1762878186880,0.01,3493.9,3493.8,5.88661953]
[1762878187043,0.01,3493.9,3493.8,7.02036033]
[1762878188656,0.01,3493.9,3493.8,6.53146033]
[1762878188855,0.01,3493.9,3493.8,5.46055633]
[1762878189064,0.4402,3493.9,3493.8,5.17433502]
[1762878189257,0.01,3493.9,3493.8,2.31212196]
[1762878189594,0.01,3493.9,3493.8,6.14713502]
[1762878189758,0.01,3493.9,3493.8,6.55263902]
[1762878190756,0.01,3493.9,3493.8,2.31212196]
[1762878190961,0.01,3493.9,3493.8,5.17433502]
[1762878191388,0.01,3493.9,3493.8,6.46189899]
[1762878191562,0.01,3493.9,3493.8,7.35630299]
[1762878192080,0.012,3493.9,3493.8,7.35630299]
[1762878192286,0.0112,3493.9,3493.8,7.35630299]
[1762878192596,1e-08,3493.9,3493.8,7.35630299]
[1762878194302,1e-08,3493.9,3493.8,6.95079899]
[1762878194595,1e-08,3493.9,3493.8,7.35630299]
[1762878195052,0.01,3494.9,3494.8,3.26689807]
[1762878195254,0.01,3494.9,3494.8,11.9855078]
[1762878195606,0.01,3494.9,3494.8,13.6081486]
[1762878196479,0.01,3494.9,3494.8,13.1192486]
[1762878196797,0.6625,3494.9,3494.8,0.49138116]
[1762878196956,0.6625,3494.9,3494.8,1.17738116]
[1762878197158,0.4747,3494.9,3494.8,1.17738116]
[1762878197581,0.01,3494.9,3494.8,5.17251603]
[1762878198365,1.0749,3494.9,3494.8,4.03877523]
[1762878199452,1.0749,3494.9,3494.4,0.49138116]
[1762878199655,0.497,3494.8,3494.5,0.686]
[1762878199881,0.497,3494.8,3494.5,3.54762942]
[1762878200159,0.3804,3494.6,3494.5,4.03902087]
[1762878200559,0.1978,3494.9,3494.8,2.86139407]
[1762878200794,0.01,3494.9,3494.8,5.65641603]
[1762878200967,0.01,3494.9,3494.8,6.06192003]
[1762878201168,0.3904,3494.9,3494.8,5.57802003]
[1762878201480,0.3904,3494.9,3494.8,6.70814179]
[1762878201481,0.01,3494.9,3494.8,6.70814179]
[1762878202080,0.01,3494.9,3494.8,7.68094179]
[1762878202268,0.1878,3495.7,3495.6,3.35212037]
[1762878202469,0.1878,3495.7,3495.6,4.03812037]
[1762878203580,0.01,3495.9,3495.8,2.86057554]
[1762878203785,0.01,3495.9,3495.8,3.3519567]
[1762878204009,0.01,3495.9,3495.8,4.04182629]
[1762878204664,0.01,3495.9,3495.8,6.06497109]
[1762878204899,0.01,3495.9,3495.8,5.17556709]
[1762878205102,0.3982,3495.9,3495.8,5.17556709]
[1762878205260,0.3993,3495.9,3495.8,1.62512196]
[1762878205459,1.082,3495.9,3495.5,2.86080455]
[1762878205705,0.6927,3495.9,3495.6,4.03811083]
[1762878206021,0.4767,3495.8,3495.7,0.686]
[1762878206364,0.8851,3495.8,3495.7,0.686]
[1762878207983,0.4084,3495.8,3495.7,4.03803853]
[1762878208504,0.8844,3495.8,3495.7,0.686]
[1762878210018,0.8864,3495.8,3495.7,0.686]
[1762878211490,0.8864,3495.8,3495.7,4.0666451]
[1762878211491,0.002,3495.8,3495.7,4.0666451]
[1762878211683,0.002,3495.8,3495.7,4.03803853]
[1762878211684,0.4029,3495.8,3495.7,4.03803853]
[1762878211901,0.8781,3495.8,3495.7,4.03803853]
[1762878212285,0.4029,3495.8,3495.7,4.03803853]
[1762878212701,0.4029,3495.8,3495.7,1.17738116]
[1762878212886,3.73867554,3495.8,3495.7,0.686]
[1762878213091,1.14455482,3495.8,3495.7,0.686]
[1762878213287,4.00513036,3495.8,3495.7,0.686]
[1762878213879,2.86086999,3495.5,3494.9,0.49138116]
[1762878214073,1.14455482,3495.8,3494.4,0.193]
[1762878214074,0.74329685,3495.4,3495.0,0.686]
[1762878214275,0.74329685,3495.4,3494.8,1.17738116]
[1762878214276,0.26659685,3495.3,3494.8,1.17738116]
[1762878214480,0.4767,3495.3,3494.7,1.17738116]
[1762878214682,3.12784454,3495.2,3494.7,0.686]
[1762878215007,0.5901,3494.8,3494.7,0.686]
[1762878215301,1.33086339,3494.8,3494.7,0.686]
[1762878216081,1.33086339,3494.8,3494.1,0.49138116]
[1762878216284,0.4767,3494.7,3494.2,3.5478551]
[1762878216483,0.4767,3494.7,3494.3,0.686]
[1762878217003,0.3965,3494.4,3494.3,0.686]
[1762878217366,0.8724,3494.4,3494.3,0.686]
[1762878218067,3.73412161,3494.4,3494.3,0.686]
[1762878218271,0.8724,3494.4,3494.3,0.686]
[1762878218876,3.73412161,3494.4,3494.3,0.686]
[1762878219074,0.8724,3494.4,3494.3,0.686]
[1762878219475,6.44561754,3495.5,3494.4,1.1337408]
[1762878219476,0.4767,3495.5,3494.4,1.1337408]
[1762878219692,0.26698889,3495.4,3494.3,0.686]
[1762878220005,0.5894,3494.4,3494.3,3.5478035]
[1762878220204,2.86107925,3495.2,3494.6,0.49138116]
[1762878220519,8.26735834,3495.8,3494.4,0.49138116]
[1762878220520,0.4928,3494.7,3494.4,0.49138116]
[1762878220723,0.0966,3494.4,3493.7,1.1337408]
[1762878220924,0.0966,3494.4,3493.6,2.86237691]
[1762878220925,0.002,3495.8,3493.8,2.86221306]
[1762878221083,1.3589479,3495.6,3494.5,2.86157593]
[1762878221288,2.86113371,3495.2,3494.6,1.17738116]
[1762878221490,2.86124278,3495.0,3494.6,0.686]
[1762878221729,0.26703449,3494.9,3494.7,2.86142152]
[1762878222033,0.26703449,3494.9,3494.6,0.686]
[1762878222034,0.26704838,3494.8,3494.6,0.686]
[1762878222233,0.85644838,3494.7,3494.2,0.686]
[1762878222444,2.86178285,3494.4,3494.2,0.686]
[1762878222600,2.86178285,3494.4,3493.4,2.6787408]
[1762878222601,2.86191137,3494.2,3493.6,0.49138116]
[1762878222797,0.26706463,3494.1,3493.7,0.686]
[1762878223004,0.0984,3494.7,3493.8,3.35359422]
[1762878223005,0.4767,3494.5,3493.8,3.35359422]
[1762878223231,0.26705467,3494.4,3493.8,3.35359422]
[1762878223474,0.26705467,3494.3,3493.9,2.86212336]
[1762878223741,0.4767,3494.4,3494.0,0.49138116]
[1762878223898,0.4871,3494.1,3493.9,2.86209794]
[1762878224100,0.4767,3494.6,3494.0,0.686]
[1762878224299,0.2668826,3494.5,3494.1,4.03929823]
[1762878224529,0.2668826,3494.4,3494.1,0.686]
[1762878224739,0.4871,3494.2,3494.1,1.17738116]
[1762878225025,0.4871,3494.2,3494.1,0.686]
[1762878225414,0.4767,3494.6,3494.1,0.686]
[1762878225606,0.74352388,3494.5,3494.1,0.686]
[1762878225805,0.4871,3494.2,3494.1,0.686]
[1762878226618,0.9638,3494.2,3494.1,0.686]
[1762878226824,0.4871,3494.2,3494.1,0.686]
[1762878227028,0.5751,3494.7,3494.4,0.49138116]
[1762878227329,0.4871,3494.5,3494.4,2.86172161]
[1762878227536,0.4871,3494.5,3494.4,3.35310277]
[1762878227739,1.1337408,3496.0,3494.4,3.35310277]
[1762878227740,0.196,3494.9,3494.6,0.49138116]
[1762878227899,0.196,3494.9,3494.7,0.686]
[1762878228100,0.4767,3494.8,3494.7,0.686]
[1762878228301,0.3904,3494.8,3494.7,1.17738116]
[1762878228605,6.7758,3495.2,3494.8,0.49138116]
[1762878228809,0.74343088,3495.1,3494.8,3.3527644]
[1762878229129,0.3904,3494.9,3494.7,4.03880871]
[1762878229432,0.1999,3494.8,3494.7,0.686]
[1762878229803,0.6766,3494.8,3494.7,0.686]
[1762878230006,0.6766,3494.8,3494.2,0.49138116]
[1762878230213,0.6766,3494.8,3494.4,2.8617199]
[1762878230548,0.6766,3494.8,3494.4,3.35310106]
[1762878230831,0.6766,3494.8,3494.4,2.86169949]
[1762878231055,0.1999,3494.8,3494.6,2.86155745]
[1762878231259,6.7767,3495.2,3494.7,3.35281162]
[1762878231462,0.26673271,3495.1,3494.7,0.49138116]
[1762878231627,0.5864,3494.8,3494.6,0.49138116]
[1762878231826,0.0039,3494.4,3494.3,0.686]
[1762878232863,0.0039,3494.4,3494.3,3.5478035]
[1762878233034,0.196,3494.8,3494.4,0.49138116]
[1762878233240,0.6727,3494.8,3494.4,0.49138116]
[1762878233436,0.3904,3494.5,3494.4,0.49138116]
[1762878233642,0.3904,3494.5,3494.3,0.686]
[1762878233847,0.0048,3494.4,3494.3,0.686]
[1762878234045,6.3,3495.2,3494.7,0.49138116]
[1762878234046,0.4767,3495.1,3494.7,0.49138116]
[1762878234235,0.26679718,3495.0,3494.7,1.17738116]
[1762878234437,0.26679718,3495.0,3494.8,0.49138116]
[1762878234798,6.3,3495.2,3494.9,0.49138116]
[1762878234942,6.3,3495.2,3494.7,3.54744625]
[1762878235262,0.26700494,3495.1,3494.8,0.49138116]
[1762878235844,6.7767,3495.2,3494.8,0.49138116]
[1762878236049,0.26700659,3495.1,3494.8,0.49138116]
[1762878236261,0.26700659,3495.0,3494.8,0.49138116]
[1762878236570,0.84650507,3494.9,3494.7,0.686]
[1762878236875,0.0117,3494.8,3494.7,0.686]
[1762878237076,0.5104,3494.8,3494.7,0.686]
[1762878237651,0.77758427,3494.8,3494.7,0.686]
[1762878238947,0.26718427,3494.8,3494.7,0.686]
[1762878239537,0.64788427,3494.8,3494.7,0.686]
[1762878239737,0.64788427,3494.8,3494.7,1.17738116]
[1762878239973,0.64788427,3494.8,3494.7,0.686]
[1762878240183,0.64708427,3494.8,3494.7,0.686]
[1762878240543,0.26638427,3494.8,3494.7,4.5074571]
[1762878240739,6.3,3495.2,3494.7,1.89149456]
[1762878240969,6.8,3495.5,3494.7,1.1546]
[1762878241169,6.8,3495.5,3495.2,2.86106218]
[1762878241170,6.3,3495.5,3495.2,2.86106218]
[1762878241374,6.3,3495.5,3495.3,0.686]
[1762878241877,6.3,3495.5,3495.3,1.17738116]
[1762878242078,6.302,3495.8,3495.3,0.686]
[1762878242388,0.5,3495.7,3495.4,2.86090266]
[1762878242597,0.5,3495.7,3495.4,0.49138116]
[1762878243092,0.3807,3495.5,3495.3,0.686]
[1762878243292,2.86080918,3495.6,3494.1,0.6207]
[1762878243293,2.86122994,3495.1,3494.1,0.6207]
[1762878243452,0.5038,3495.4,3494.5,0.49138116]
[1762878243654,2.8610666,3495.2,3494.6,0.686]
[1762878243853,2.8610666,3495.2,3494.7,0.686]
[1762878244088,2.86136708,3494.9,3494.7,0.686]
[1762878244273,0.5633,3494.8,3494.7,0.686]
[1762878244651,1.0621,3494.8,3494.7,0.686]
[1762878245060,0.3807,3494.8,3494.7,0.686]
[1762878245398,0.5,3495.5,3494.8,0.49138116]
[1762878245595,6.8,3495.5,3494.8,0.02861394]
[1762878245755,9.6608443,3495.5,3495.0,0.49138116]
[1762878245956,6.8,3495.5,3495.1,0.686]
[1762878246300,6.3,3495.5,3495.1,0.686]
[1762878246586,6.8,3495.5,3495.1,0.686]
[1762878246905,0.4574,3495.2,3495.1,0.686]
[1762878247691,0.8802,3495.2,3495.1,0.686]
[1762878248005,3.7412666,3495.2,3495.1,0.686]
[1762878248187,0.8802,3495.2,3495.1,0.686]
[1762878248588,0.4574,3495.2,3495.1,0.686]
[1762878248905,0.002,3495.4,3495.1,0.686]
[1762878249105,0.3807,3495.2,3495.1,0.686]
[1762878249267,3.2417666,3495.2,3495.1,0.686]
[1762878249465,2.8611498,3495.1,3494.7,0.686]
[1762878249666,0.4988,3495.1,3494.7,0.686]
[1762878249922,0.502,3495.4,3494.8,2.86133412]
[1762878250227,0.5633,3494.9,3494.7,0.686]
[1762878250516,0.0038,3494.8,3494.7,0.686]
[1762878250715,0.5038,3494.8,3494.7,0.686]
[1762878250897,0.5,3495.3,3494.7,0.686]
[1762878251093,0.5633,3494.8,3494.7,0.686]
[1762878251705,1.0621,3494.8,3494.7,0.686]
[1762878251938,3.92349407,3494.8,3494.7,0.686]
[1762878252241,0.83097037,3494.8,3494.7,0.686]
[1762878253121,1.32977037,3494.8,3494.7,0.686]
[1762878253389,4.19116444,3494.8,3494.7,0.686]
[1762878253943,4.19116444,3494.8,3494.5,0.001]
[1762878253944,2.86155783,3494.6,3494.5,0.001]
[1762878254238,0.27267037,3494.6,3494.5,0.001]
[1762878254638,3.6342282,3494.6,3494.5,0.001]
[1762878255388,0.77267037,3494.6,3494.5,0.001]
[1762878255893,3.6342282,3494.6,3494.5,0.001]
[1762878256094,0.77267037,3494.6,3494.5,0.001]
[1762878256833,3.6342282,3494.6,3494.5,0.001]
[1762878259076,6.57267037,3494.6,3494.5,0.001]
[1762878259388,6.56767037,3494.6,3494.5,3.33123971]
[1762878259668,6.3,3494.6,3494.5,4.29362087]
[1762878259871,6.3,3494.6,3494.5,5.07775696]
[1762878260425,6.3,3494.6,3494.5,0.49238116]
[1762878260671,2.8629207,3495.4,3494.5,1.1556]
[1762878260993,1.53394008,3496.3,3494.5,1.1556]
[1762878260994,0.77106538,3496.7,3496.3,3.35148442]
[1762878261267,0.26759653,3496.6,3496.4,0.687]
[1762878261464,0.1926,3496.9,3496.4,0.687]
[1762878261769,0.411,3496.5,3496.2,0.687]
[1762878261935,0.76632771,3496.8,3496.2,0.687]
[1762878261936,0.4118,3496.3,3496.2,0.687]
[1762878262252,0.4118,3496.3,3495.8,0.687]
[1762878262430,0.5936,3495.9,3495.8,0.687]
[1762878263163,1.0927,3495.9,3495.8,0.687]
[1762878263633,3.95319372,3495.9,3495.8,0.687]
[1762878263836,1.0927,3495.9,3495.8,0.687]
[1762878264377,1.0919,3495.9,3495.8,0.687]
[1762878264554,3.95239372,3495.9,3495.8,0.687]
[1762878264725,1.0919,3495.9,3495.8,0.687]
[1762878264924,1.0919,3495.9,3495.4,1.17838116]
[1762878265123,0.5928,3495.9,3495.4,0.687]
[1762878265337,0.4118,3495.5,3495.4,0.687]
[1762878265847,0.4118,3495.5,3494.5,0.001]
[1762878265848,2.86112807,3495.2,3494.7,0.686]
[1762878266156,2.86112243,3495.2,3494.7,0.686]
[1762878266334,0.2205,3494.8,3494.7,0.686]
[1762878267182,0.1934,3495.3,3494.7,0.686]
[1762878267359,0.1934,3495.3,3495.1,0.001]
[1762878268386,6.54428687,3495.5,3495.1,0.001]
[1762878268543,9.40511883,3495.5,3495.1,0.001]
[1762878268868,2.86083196,3495.5,3495.1,0.001]
[1762878269071,6.72608687,3495.9,3495.1,0.001]
[1762878269072,3.05227815,3496.9,3495.4,0.4857]
[1762878269279,3.05227815,3496.9,3495.2,0.686]
[1762878269280,2.86022138,3496.3,3495.6,2.86068433]
[1762878269429,3.99382545,3496.4,3495.6,0.49138116]
[1762878269773,3.99382545,3496.4,3495.5,3.35218587]
[1762878270070,3.99383579,3496.4,3495.5,3.35214492]
[1762878270283,2.8603415,3496.1,3495.5,0.49138116]
[1762878270486,2.86027297,3496.2,3495.5,3.35220042]
[1762878270777,2.86016646,3496.3,3495.6,3.35211996]
[1762878270956,1.1337408,3496.4,3495.4,0.4955]